bitfinex/quotes_BTCUSD_20251217
["timestamp","ask_amount","ask_price","bid_price","bid_amount"]
[1765990678035,1.25465,86954.0,86940.0,0.01150218]
[1765990678258,1.0,86956.0,86955.0,0.23000402]
[1765990678483,0.01149623,86985.0,86955.0,0.23000402]
[1765990678484,1.0773,86973.0,86958.0,0.0114998]
[1765990678646,0.0907,86973.0,86966.0,0.01149874]
[1765990678847,0.0907,86973.0,86965.0,0.01149887]
[1765990679042,0.0907,86973.0,86967.0,0.01149861]
[1765990679259,0.0907,86973.0,86961.0,0.0114994]
[1765990679464,0.0907,86973.0,86959.0,0.22998819]
[1765990679665,1.0,86972.0,86959.0,0.24148786]
[1765990679868,1.0,86972.0,86935.0,0.46010926]
[1765990679869,0.70436182,86970.0,86949.0,0.24151906]
[1765990680121,0.51164,86967.0,86953.0,0.24150963]
[1765990680344,0.51164,86967.0,86950.0,0.01150172]
[1765990680345,0.51164,86965.0,86951.0,0.01150073]
[1765990680545,0.00072607,86974.0,86950.0,8.6e-07]
[1765990680546,0.53004,86974.0,86953.0,0.00161287]
[1765990680746,0.53004,86974.0,86966.0,0.24147346]
[1765990680747,0.0907,86973.0,86966.0,0.24147346]
[1765990680948,0.0907,86973.0,86964.0,0.01149901]
[1765990681087,0.0907,86973.0,86969.0,0.2414629]
[1765990681288,0.9431,86979.0,86971.0,0.01149808]
[1765990681489,0.51164,86991.0,86979.0,0.24143718]
[1765990681689,0.21,86989.0,86979.0,0.01149702]
[1765990681892,1.0,86996.0,86979.0,0.01149702]
[1765990682120,0.0184,86995.0,86980.0,0.01149689]
[1765990682319,0.313,86992.0,86983.0,0.01149649]
[1765990682526,0.1244,86992.0,86983.0,0.01149649]
[1765990682902,0.1244,86992.0,86980.0,0.2414345]
[1765990683110,0.1244,86992.0,86979.0,0.00161287]
[1765990683307,0.1244,86992.0,86982.0,0.01149663]
[1765990683550,0.1091,86996.0,86983.0,0.01149649]
[1765990683756,0.05767199,87014.0,86983.0,0.01149649]
[1765990683757,6.82897431,87000.0,86994.0,0.22990059]
[1765990683926,6.82897431,87000.0,86988.0,0.01149583]
[1765990684108,6.82897431,87000.0,86991.0,0.01149544]
[1765990684337,6.82897431,87000.0,86988.0,0.01149583]
[1765990684556,6.82897431,87000.0,86993.0,0.22990199]
[1765990684799,6.82897431,87000.0,86993.0,0.05163126]
[1765990684800,6.72279431,87000.0,86993.0,0.05163126]
[1765990684975,6.72279431,87000.0,86999.0,0.22988769]
[1765990685184,5.98040139,87000.0,86999.0,0.28151895]
[1765990685405,5.43824442,87000.0,86999.0,0.28151895]
[1765990685607,5.37376142,87000.0,86999.0,0.28151895]
[1765990685837,5.31835901,87000.0,86999.0,0.28151895]
[1765990686041,5.31835901,87000.0,86998.0,0.01351176]
[1765990686238,0.0184,86999.0,86998.0,0.01351176]
[1765990686470,0.01991484,86999.0,86998.0,0.01351176]
[1765990687186,4.81803346,87000.0,86999.0,0.22988769]
[1765990687400,4.50951825,87000.0,86999.0,0.28151895]
[1765990687532,4.29366137,87000.0,86999.0,0.28151895]
[1765990687944,4.29366137,87000.0,86999.0,0.05163126]
[1765990689197,4.29366137,87000.0,86999.0,0.05363126]
[1765990689399,4.29366137,87000.0,86999.0,0.05163126]
[1765990689839,4.29366137,87000.0,86999.0,0.05363126]
[1765990690185,4.29366137,87000.0,86998.0,0.01351176]
[1765990690394,4.29366137,87000.0,86999.0,0.002]
[1765990691238,4.22198137,87000.0,86999.0,0.002]
[1765990691432,3.23499568,87000.0,86999.0,0.05363126]
[1765990691626,3.09063497,87000.0,86999.0,0.05163126]
[1765990691865,2.85017778,87000.0,86999.0,0.05163126]
[1765990692048,2.52241454,87000.0,86999.0,0.05363126]
[1765990692248,2.52241454,87000.0,86999.0,0.05163126]
[1765990692722,2.06883033,87000.0,86999.0,0.05363126]
[1765990692926,1.64743374,87000.0,86999.0,0.05163126]
[1765990693081,1.54250625,87000.0,86999.0,0.05163126]
[1765990693288,1.54250625,87000.0,86999.0,0.05563126]
[1765990693495,0.97622145,87000.0,86999.0,0.05563126]
[1765990693667,0.92436778,87000.0,86999.0,0.05563126]
[1765990693861,0.67704628,87000.0,86999.0,0.05563126]
[1765990694061,0.36608185,87000.0,86999.0,0.05563126]
[1765990694288,0.24483946,87000.0,86999.0,0.05563126]
[1765990694712,0.24483946,87000.0,86999.0,0.00161287]
[1765990695162,0.24483946,87000.0,86999.0,0.05363126]
[1765990695332,0.24483946,87000.0,86999.0,0.05163126]
[1765990695672,0.24483946,87000.0,86999.0,0.00261287]
[1765990695987,0.24483946,87000.0,86999.0,0.00161287]
[1765990696189,0.24483946,87000.0,86999.0,0.00261287]
[1765990697717,0.15643946,87000.0,86999.0,0.29631221]
[1765990697933,1e-08,87000.0,86999.0,0.28251895]
[1765990698139,0.0002,87011.0,87007.0,0.05001839]
[1765990698420,0.55144,87042.0,87013.0,0.29136135]
[1765990698421,0.05524,87042.0,87013.0,0.29136135]
[1765990698562,0.0001,87050.0,87022.0,0.00161287]
[1765990698962,0.5089,87049.0,87022.0,0.00161287]
[1765990699179,0.5089,87049.0,87026.0,0.01149081]
[1765990699180,0.179,87048.0,87026.0,0.01149081]
[1765990699400,0.179,87048.0,87026.0,0.00161287]
[1765990699970,0.179,87048.0,87034.0,0.01351176]
[1765990700166,0.179,87048.0,87034.0,0.00161287]
[1765990700372,0.0184,87047.0,87037.0,0.01351176]
[1765990700628,0.0184,87047.0,87037.0,0.01512463]
[1765990701186,0.0184,87046.0,87038.0,0.05001839]
[1765990701408,0.0084,87045.0,87038.0,0.05163126]
[1765990701633,0.0001,87050.0,87038.0,0.05163126]
[1765990701634,0.0066,87044.0,87038.0,0.05163126]
[1765990701815,0.0184,87043.0,87039.0,0.05001839]
[1765990702016,0.0068,87042.0,87039.0,0.05163126]
[1765990702216,0.64651779,87067.0,87041.0,0.00161287]
[1765990702423,0.0907,87065.0,87041.0,0.03432287]
[1765990702620,0.0907,87065.0,87041.0,0.00161287]
[1765990702826,0.05599,87065.0,87053.0,0.01351176]
[1765990703120,0.0184,87064.0,87053.0,0.01512463]
[1765990705045,0.003,87065.0,87053.0,0.01512463]
[1765990705046,0.003,87065.0,87063.0,0.00161287]
[1765990705250,0.05780349,87110.0,87054.0,0.05001839]
[1765990705251,0.0184,87096.0,87064.0,0.00161287]
[1765990705492,0.0184,87096.0,87083.0,0.05001839]
[1765990705697,0.0184,87097.0,87087.0,0.01148277]
[1765990705901,0.0184,87106.0,87090.0,0.05001839]
[1765990706105,0.70436182,87120.0,87090.0,0.05148192]
[1765990706301,1.0,87118.0,87093.0,0.01148197]
[1765990706532,0.0907,87117.0,87093.0,0.00161287]
[1765990706761,0.67923,87106.0,87093.0,0.00161287]
[1765990706950,1.0184,87105.0,87093.0,0.00161287]
[1765990707110,0.0184,87105.0,87077.0,0.01148408]
[1765990707314,0.67923,87102.0,87087.0,0.01351176]
[1765990707515,1.17543,87097.0,87078.0,0.00161287]
[1765990707717,1.0,87096.0,87078.0,0.00161287]
[1765990707917,0.70436182,87100.0,87078.0,0.00161287]
[1765990707918,0.0907,87091.0,87078.0,0.00161287]
[1765990708101,0.0184,87090.0,87078.0,0.00161287]
[1765990708687,0.0907,87106.0,87086.0,0.01351176]
[1765990708889,0.0907,87104.0,87086.0,0.01512463]
[1765990709017,0.001,87096.0,87086.0,0.01512463]
[1765990709218,0.0907,87104.0,87086.0,0.01512463]
[1765990709607,0.002,87090.0,87086.0,0.01512463]
[1765990709880,0.0907,87104.0,87086.0,0.01512463]
[1765990710084,0.0907,87104.0,87086.0,0.02660753]
[1765990710362,0.001,87096.0,87086.0,0.01512463]
[1765990710802,0.001,87096.0,87086.0,0.00161287]
[1765990710952,0.001,87096.0,87049.0,0.45950995]
[1765990710953,0.4962,87094.0,87065.0,0.05001839]
[1765990711153,0.0184,87093.0,87074.0,0.06150287]
[1765990711465,0.0907,87103.0,87084.0,0.06150155]
[1765990711707,0.0907,87103.0,87084.0,0.05163126]
[1765990711880,0.4962,87099.0,87084.0,0.00161287]
[1765990712058,1.4962,87096.0,87063.0,0.01148593]
[1765990712265,0.003,87093.0,87069.0,0.01512463]
[1765990712667,0.70436182,87090.0,87069.0,0.00161287]
[1765990712902,0.4962,87087.0,87071.0,0.01351176]
[1765990713089,0.003,87093.0,87071.0,0.01512463]
[1765990713090,0.2689,87091.0,87071.0,0.01512463]
[1765990713267,0.0184,87090.0,87071.0,0.01512463]
[1765990713467,0.0184,87090.0,87072.0,0.06798313]
[1765990713661,0.0184,87090.0,87072.0,0.05163126]
[1765990713854,0.0184,87090.0,87073.0,0.00648]
[1765990714079,0.0184,87090.0,87073.0,0.00161287]
[1765990714303,0.01148342,87082.0,87073.0,0.00161287]
[1765990714541,0.01148342,87082.0,87054.0,0.01378454]
[1765990714542,1.5869,87071.0,87039.0,0.00648]
[1765990714659,0.0184,87070.0,87053.0,0.00161287]
[1765990714858,0.0907,87071.0,87053.0,0.00161287]
[1765990715059,0.003,87087.0,87055.0,0.01148699]
[1765990715319,0.22961835,87102.0,87055.0,0.01148699]
[1765990715320,0.0907,87102.0,87063.0,0.05001839]
[1765990715474,0.002,87082.0,87075.0,0.01148435]
[1765990715680,0.01836,87104.0,87072.0,0.00648]
[1765990715681,0.01836,87104.0,87084.0,0.22966119]
[1765990715880,0.2923,87103.0,87085.0,0.01148303]
[1765990716078,0.67923,87109.0,87085.0,0.0130959]
[1765990716079,0.005,87087.0,87085.0,0.0130959]
[1765990716297,0.005,87087.0,87086.0,0.00609287]
[1765990716498,0.01836,87102.0,87086.0,0.00161287]
[1765990716727,0.01836,87102.0,87086.0,0.01309577]
[1765990716930,0.70436182,87100.0,87086.0,0.00161287]
[1765990717313,1.0,87096.0,87069.0,0.05001839]
[1765990717513,1.0,87099.0,87076.0,0.00161287]
[1765990718116,1.0,87098.0,87076.0,0.00161287]
[1765990718323,0.01836,87097.0,87077.0,0.05001839]
[1765990718474,0.01836,87097.0,87077.0,0.05163126]
[1765990718683,0.01836,87097.0,87077.0,0.00161287]
[1765990718923,0.00040963,87078.0,87077.0,0.00161287]
[1765990719269,0.01836,87084.0,87077.0,0.05163126]
[1765990719637,0.01836,87093.0,87083.0,0.00161287]
[1765990719881,0.002,87097.0,87083.0,0.00161287]
[1765990720092,0.76993,87095.0,87083.0,0.00161287]
[1765990720225,0.00025204,87086.0,87083.0,0.00161287]
[1765990721013,0.001,87078.0,87076.0,0.00054591]
[1765990721464,0.01836,87083.0,87066.0,0.01351176]
[1765990721465,0.0907,87082.0,87066.0,0.01351176]
[1765990722332,0.001,87078.0,87066.0,0.01351176]
[1765990722540,0.0907,87082.0,87066.0,0.01351176]
[1765990722743,0.0907,87079.0,87068.0,0.01351176]
[1765990723301,0.71322,87083.0,87068.0,0.01351176]
[1765990723523,0.0907,87082.0,87069.0,0.01378217]
[1765990723689,0.01836,87083.0,87068.0,0.01351176]
[1765990723847,0.002,87082.0,87068.0,0.01351176]
[1765990724239,0.70276618,87080.0,87056.0,0.05001839]
[1765990724441,0.70276618,87080.0,87067.0,0.01351176]
[1765990724641,0.70437618,87080.0,87067.0,0.01351176]
[1765990725298,0.00161,87080.0,87067.0,0.01351176]
[1765990725673,0.48581,87080.0,87067.0,0.01351176]
[1765990726046,0.48581,87080.0,87052.0,0.25474483]
[1765990726047,0.0907,87073.0,87052.0,0.01351176]
[1765990726248,0.01836,87072.0,87052.0,0.01351176]
[1765990726690,0.01836,87072.0,87052.0,0.24325766]
[1765990726919,0.01836,87072.0,87053.0,0.01148725]
[1765990727312,0.01836,87072.0,87052.0,0.01351176]
[1765990727683,0.4832,87069.0,87052.0,0.01351176]
[1765990727886,0.01936,87072.0,87052.0,0.01351176]
[1765990728123,0.0907,87070.0,87052.0,0.01351176]
[1765990728327,1.17806,87069.0,87042.0,0.0114887]
[1765990728506,1.17806,87069.0,87044.0,0.01148844]
[1765990728707,1.17806,87069.0,87042.0,0.05001839]
[1765990728905,1.17806,87069.0,87042.0,0.06150709]
[1765990729305,0.01836,87072.0,87042.0,0.06150709]
[1765990729306,0.01836,87072.0,87059.0,0.01351176]
[1765990729512,0.0907,87070.0,87059.0,0.01351176]
[1765990730509,0.0907,87070.0,87047.0,0.06353015]
[1765990730899,0.4832,87069.0,87047.0,0.06353015]
[1765990731304,0.01062909,87068.0,87047.0,0.06353015]
[1765990731538,0.4832,87069.0,87047.0,0.06353015]
[1765990731754,0.78556,87070.0,87036.0,0.03091116]
[1765990731755,0.0907,87059.0,87036.0,0.03091116]
[1765990731951,0.4832,87057.0,87029.0,0.03091116]
[1765990732150,0.4832,87057.0,87033.0,0.05001839]
[1765990732151,0.69486,87057.0,87033.0,0.05001839]
[1765990732512,0.4832,87056.0,87033.0,0.05001839]
[1765990732924,0.69486,87056.0,87028.0,0.27246016]
[1765990733104,1.17806,87056.0,87028.0,0.03116116]
[1765990733297,0.4832,87054.0,87028.0,0.03116116]
[1765990733504,0.01836,87058.0,87033.0,0.00216]
[1765990733718,0.8945,87056.0,87033.0,0.00241]
[1765990733978,0.4833,87055.0,87033.0,0.00241]
[1765990734182,0.9905,87057.0,87033.0,0.00241]
[1765990734480,0.001,87054.0,87033.0,0.00241]
[1765990734717,1.0,87056.0,87033.0,0.00241]
[1765990734954,0.01063836,87057.0,87033.0,0.00241]
[1765990734955,0.385,87057.0,87033.0,0.00241]
[1765990735156,0.001,87056.0,87034.0,0.00216]
[1765990735359,0.001,87056.0,87034.0,0.00241]
[1765990735602,0.001,87056.0,87035.0,0.00025]
[1765990735809,0.69486,87055.0,87033.0,0.05001839]
[1765990736440,0.1852,87057.0,87036.0,0.00025]
[1765990736649,0.01836,87058.0,87036.0,0.00025]
[1765990736650,0.01836,87058.0,87046.0,0.01351176]
[1765990736880,0.01836,87058.0,87036.0,0.00216]
[1765990737084,0.01836,87058.0,87036.0,0.00241]
[1765990737289,0.01836,87058.0,87036.0,0.00216]
[1765990737495,0.0907,87057.0,87034.0,0.00025]
[1765990737704,0.0917,87057.0,87034.0,0.00025]
[1765990737909,0.4832,87054.0,87033.0,0.05001839]
[1765990738126,0.0907,87057.0,87033.0,0.05001839]
[1765990738331,0.2597,87056.0,87034.0,0.00025]
[1765990738476,0.01836,87058.0,87037.0,0.00025]
[1765990739083,0.01836,87058.0,87046.0,0.01351176]
[1765990740267,0.01836,87058.0,87037.0,0.00025]
[1765990740671,0.01836,87058.0,87037.0,0.00241]
[1765990741071,0.01836,87058.0,87038.0,0.00025]
[1765990741272,0.0907,87060.0,87046.0,0.01351176]
[1765990741624,0.0907,87060.0,87038.0,0.00025]
[1765990741625,0.01836,87057.0,87038.0,0.00216]
[1765990741825,0.01836,87057.0,87046.0,0.01351176]
[1765990742032,1.0,87056.0,87038.0,0.00025]
[1765990742232,0.01836,87057.0,87039.0,0.00025]
[1765990743342,0.01836,87057.0,87046.0,0.01351176]
[1765990743542,0.01836,87057.0,87056.0,0.00037824]
[1765990745904,0.00051444,87069.0,87056.0,0.00037824]
[1765990746096,0.00051444,87069.0,87066.0,0.01351176]
[1765990746522,1.17806,87068.0,87047.0,0.03091116]
[1765990746697,1.17806,87068.0,87046.0,0.01351176]
[1765990746839,1.17806,87068.0,87046.0,0.04442292]
[1765990747050,1.17806,87068.0,87056.0,0.001]
[1765990747255,1.17806,87068.0,87046.0,0.04442292]
[1765990747491,1.17806,87068.0,87046.0,0.01351176]
[1765990747686,1.17806,87067.0,87046.0,0.01351176]
[1765990747847,0.00051444,87069.0,87046.0,0.01351176]
[1765990748257,1.0,87055.0,87038.0,0.01351176]
[1765990748429,0.69486,87052.0,87038.0,0.01351176]
[1765990748605,1.17806,87052.0,87038.0,0.01351176]
[1765990749176,0.01836,87054.0,87038.0,0.01351176]
[1765990749848,0.01997,87054.0,87038.0,0.01351176]
[1765990751632,0.49747,87074.0,87052.0,0.01351176]
[1765990751833,0.0907,87065.0,87052.0,0.01351176]
[1765990752064,0.01836,87068.0,87052.0,0.01351176]
[1765990752216,0.00161,87067.0,87052.0,0.01351176]
[1765990753249,0.00161,87067.0,87052.0,0.01451176]
[1765990753426,0.00161,87067.0,87052.0,0.01351176]
[1765990753627,0.00161,87067.0,87052.0,0.01451176]
[1765990754172,0.00051444,87069.0,87053.0,0.001]
[1765990754173,0.01836,87066.0,87053.0,0.001]
[1765990754376,0.01836,87066.0,87053.0,0.01249012]
[1765990754781,0.01836,87066.0,87053.0,0.00100287]
[1765990755341,0.01836,87066.0,87054.0,0.01148712]
[1765990755546,0.01836,87066.0,87056.0,0.22973631]
[1765990755746,0.01836,87066.0,87057.0,0.01148672]
[1765990755958,0.01836,87066.0,87058.0,0.01148659]
[1765990756145,0.01836,87066.0,87060.0,0.01148633]
[1765990756342,0.01836,87066.0,87065.0,0.00100287]
[1765990756548,0.00051444,87069.0,87066.0,0.05001839]
[1765990756860,0.00051444,87069.0,87068.0,0.01351176]
[1765990757121,0.00051444,87069.0,87068.0,0.01451463]
[1765990757508,0.71359,87094.0,87068.0,0.01451463]
[1765990757509,0.71359,87111.0,87074.0,0.01148448]
[1765990757709,1.0,87105.0,87085.0,0.01351176]
[1765990757881,1.0,87105.0,87085.0,0.01451463]
[1765990757882,0.0907,87102.0,87085.0,0.01451463]
[1765990758240,1.0,87099.0,87086.0,0.01351176]
[1765990758390,0.01836,87098.0,87085.0,0.00100287]
[1765990758574,0.01896999,87098.0,87085.0,0.00100287]
[1765990758770,0.0907,87097.0,87085.0,0.00100287]
[1765990759031,0.09130999,87097.0,87085.0,0.00100287]
[1765990759246,0.0907,87097.0,87086.0,0.01351176]
[1765990759444,0.01836,87098.0,87087.0,0.01377932]
[1765990759589,0.01836,87098.0,87087.0,0.00100287]
[1765990760211,0.0907,87107.0,87087.0,0.00100287]
[1765990760385,0.09130999,87107.0,87087.0,0.00100287]
[1765990760590,0.09130999,87107.0,87087.0,0.01248564]
[1765990760788,0.09130999,87107.0,87087.0,0.00100287]
[1765990761006,0.09130999,87107.0,87089.0,0.0114825]
[1765990761204,0.09130999,87107.0,87089.0,0.00100287]
[1765990761205,0.00060999,87107.0,87089.0,0.00100287]
[1765990761530,0.00060999,87107.0,87090.0,0.01148237]
[1765990761730,0.00060999,87107.0,87090.0,0.01248524]
[1765990761910,0.00060999,87107.0,87090.0,0.00100287]
[1765990762519,0.00060999,87107.0,87090.0,0.01248524]
[1765990762720,0.01836,87106.0,87093.0,0.01148197]
[1765990762956,0.01836,87106.0,87093.0,0.00100287]
[1765990764638,0.00836,87106.0,87093.0,0.00100287]
[1765990764867,0.00836,87106.0,87093.0,0.00200287]
[1765990765064,0.00078759,87094.0,87093.0,0.00100287]
[1765990765978,0.00078759,87094.0,87071.0,0.22969614]
[1765990765979,1.23020759,87094.0,87070.0,0.03091116]
[1765990766269,0.71359,87090.0,87066.0,0.03091116]
[1765990766462,0.49747,87087.0,87065.0,0.03091116]
[1765990766797,0.01836,87094.0,87064.0,0.03091116]
[1765990766798,0.49747,87092.0,87064.0,0.03091116]
[1765990767007,1.0,87091.0,87069.0,0.01351176]
[1765990767257,0.0907,87084.0,87068.0,0.00051444]
[1765990767452,0.0907,87082.0,87068.0,4.44e-06]
[1765990767603,1.21106,87080.0,87068.0,4.44e-06]
[1765990767807,0.01836,87081.0,87068.0,4.44e-06]
[1765990767808,0.01836,87081.0,87069.0,0.01351176]
[1765990768006,0.01836,87081.0,87069.0,0.01451463]
[1765990768389,0.01836,87081.0,87069.0,0.02599977]
[1765990768589,0.01836,87081.0,87080.0,0.00100287]
[1765990768590,0.01685,87081.0,87080.0,0.00100287]
[1765990769948,0.01836,87092.0,87080.0,0.00100287]
[1765990770149,0.01836,87092.0,87085.0,0.01351176]
[1765990770328,0.01836,87092.0,87085.0,0.01451463]
[1765990771422,0.01836,87092.0,87085.0,0.01551463]
[1765990771835,0.00053561,87086.0,87085.0,0.01551463]
[1765990772164,0.00053561,87086.0,87085.0,0.01451463]
[1765990773213,0.01836,87092.0,87085.0,0.01451463]
[1765990774188,0.01836,87092.0,87085.0,0.01551463]
[1765990774397,0.01836,87092.0,87085.0,0.01451463]
[1765990774767,0.01836,87092.0,87085.0,0.01551463]
[1765990774967,0.01836,87092.0,87085.0,0.01451463]
[1765990775373,0.01836,87092.0,87085.0,0.02599766]
[1765990775577,0.01836,87092.0,87088.0,0.01148263]
[1765990775754,0.01836,87092.0,87088.0,0.00100287]
[1765990776592,0.09130999,87107.0,87088.0,0.00100287]
[1765990776791,0.01836,87106.0,87088.0,0.00100287]
[1765990777196,0.01836,87106.0,87089.0,0.0114825]
[1765990777429,0.01836,87106.0,87089.0,0.00100287]
[1765990778092,0.01936,87106.0,87089.0,0.00100287]
[1765990778314,0.71359,87104.0,87089.0,0.00100287]
[1765990778517,1.21106,87103.0,87089.0,0.00100287]
[1765990779179,0.01936,87106.0,87089.0,0.00100287]
[1765990779316,0.11006,87106.0,87089.0,0.00100287]
[1765990779943,0.10906,87106.0,87089.0,0.00100287]
[1765990780154,0.11006,87106.0,87089.0,0.00100287]
[1765990780570,0.10906,87106.0,87089.0,0.00100287]
[1765990780802,0.11006,87106.0,87089.0,0.00100287]
[1765990781221,0.00063594,87090.0,87089.0,0.00100287]
[1765990782818,0.01836,87094.0,87089.0,0.00100287]
[1765990783333,0.01836,87094.0,87089.0,0.00200287]
[1765990783881,0.01836,87094.0,87089.0,0.00100287]
[1765990784054,0.01836,87094.0,87089.0,0.00200287]
[1765990784838,0.01836,87094.0,87089.0,0.00100287]
[1765990786761,0.01836,87094.0,87089.0,0.00200287]
[1765990787001,0.01836,87094.0,87089.0,0.00100287]
[1765990787656,0.73049,87094.0,87089.0,0.00100287]
[1765990787864,0.01836,87094.0,87089.0,0.00100287]
[1765990789385,0.01836,87094.0,87089.0,0.27298307]
[1765990789604,0.01836,87094.0,87089.0,0.03185073]
[1765990790109,0.01836,87103.0,87093.0,0.03084786]
[1765990790308,0.01836,87103.0,87102.0,0.01351176]
[1765990790840,0.01876946,87103.0,87102.0,0.01351176]
[1765990791185,0.01876946,87103.0,87093.0,0.00100287]
[1765990791402,0.01836,87103.0,87100.0,0.01351176]
[1765990792522,0.01836,87103.0,87102.0,0.001]
[1765990792724,0.00060999,87107.0,87102.0,0.001]
[1765990792927,0.01836,87106.0,87100.0,0.01351176]
[1765990793132,0.01836,87106.0,87100.0,0.01451176]
[1765990793545,0.01836,87106.0,87100.0,0.01451463]
[1765990793740,0.01836,87106.0,87102.0,0.03198065]
[1765990793944,0.01836,87106.0,87103.0,0.24109331]
[1765990794147,0.0907,87129.0,87105.0,0.2806292]
[1765990794414,0.02909938,87128.0,87106.0,0.01148026]
[1765990794589,0.01836,87128.0,87107.0,0.06149852]
[1765990794773,0.01836,87128.0,87117.0,0.01351176]
[1765990794971,0.01836,87128.0,87107.0,0.05102126]
[1765990795175,0.01836,87128.0,87117.0,0.01351176]
[1765990795677,0.01836,87128.0,87117.0,0.01451463]
[1765990797158,0.01896999,87128.0,87117.0,0.01551463]
[1765990797620,0.00088175,87118.0,87117.0,0.01551463]
[1765990798579,0.00088175,87118.0,87111.0,0.04246025]
[1765990798580,0.00149174,87118.0,87103.0,0.03098065]
[1765990798814,0.0907,87112.0,87098.0,0.03098065]
[1765990799021,0.09130999,87112.0,87098.0,0.03098065]
[1765990799245,0.09130999,87112.0,87095.0,0.01551]
[1765990799935,0.70196752,87110.0,87089.0,0.03098065]
[1765990800135,0.00060999,87110.0,87089.0,0.03098065]
[1765990800344,0.00060999,87110.0,87088.0,0.00054583]
[1765990800345,0.48433,87107.0,87088.0,0.00054583]
[1765990800563,0.10906,87106.0,87088.0,0.00054583]
[1765990800779,0.70241942,87100.0,87089.0,0.01351176]
[1765990800927,0.7034223,87100.0,87088.0,0.00054583]
[1765990801271,0.71213,87098.0,87088.0,0.00054583]
[1765990801492,0.00100288,87089.0,87075.0,0.03098065]
[1765990801698,0.00100288,87089.0,87072.0,0.03098065]
[1765990801699,0.01836,87088.0,87072.0,0.03098065]
[1765990801927,0.01836,87088.0,87069.0,0.03098065]
[1765990801928,0.71213,87081.0,87069.0,0.03098065]
[1765990802155,0.71213,87081.0,87052.0,0.01551]
[1765990802156,0.71213,87072.0,87055.0,0.0410584]
[1765990802355,0.00060998,87072.0,87055.0,0.00100288]
[1765990802522,0.00060998,87072.0,87056.0,0.02712]
[1765990802757,0.01836,87073.0,87056.0,0.02712]
[1765990802758,0.01836,87073.0,87056.0,0.02873286]
[1765990802958,0.70241942,87070.0,87056.0,0.00161286]
[1765990803182,0.70241942,87070.0,87049.0,0.01351176]
[1765990803183,0.48433,87068.0,87049.0,0.01351176]
[1765990803380,0.48433,87062.0,87038.0,0.05254763]
[1765990803587,0.70241942,87050.0,87038.0,0.00161286]
[1765990803975,0.01149029,87030.0,87000.0,0.00099999]
[1765990804369,0.12555779,87049.0,86981.0,0.01189676]
[1765990804370,1.80283,86995.0,86981.0,0.0004]
[1765990804577,0.71213,86978.0,86965.0,0.0004]
[1765990804831,0.01836,86977.0,86965.0,0.0004]
[1765990805044,0.00099999,86980.0,86968.0,0.00201286]
[1765990805271,0.22987183,87006.0,86968.0,0.00201286]
[1765990805272,0.70241942,87010.0,86985.0,0.1997]
[1765990805488,0.01149108,87024.0,86985.0,0.1997]
[1765990805489,0.2669,86999.0,86985.0,0.00161286]
[1765990805713,0.70241942,87020.0,86992.0,0.1997]
[1765990805916,0.81147942,87030.0,86998.0,0.21119451]
[1765990806126,0.0907,87026.0,87002.0,0.21119398]
[1765990806333,0.0907,87026.0,87002.0,0.20131286]
[1765990806546,0.01836,87029.0,87002.0,0.00161286]
[1765990806547,0.70241942,87012.0,87002.0,0.00161286]
[1765990806753,0.01836,87029.0,87002.0,0.00161286]
[1765990806754,0.71213,87017.0,87002.0,0.00161286]
[1765990806966,0.0907,87026.0,87003.0,0.01149385]
[1765990807183,0.0907,87026.0,87009.0,0.01351176]
[1765990807438,1.19646,87019.0,87003.0,0.00161286]
[1765990807632,0.1534,87017.0,87003.0,0.00161286]
[1765990807870,1.0,87012.0,86988.0,0.01351176]
[1765990808073,0.275,86998.0,86975.0,0.01149755]
[1765990808247,0.0907,87015.0,86993.0,0.01149517]
[1765990808545,0.0907,87015.0,86998.0,0.01149451]
[1765990808752,0.0907,87015.0,87003.0,0.01351176]
[1765990809096,0.0907,87015.0,86998.0,0.00161286]
[1765990809097,0.003,87012.0,86998.0,0.00161286]
[1765990809301,0.70241942,87010.0,86998.0,0.00161286]
[1765990809505,0.01149583,86988.0,86965.0,0.0004]
[1765990809707,0.47267,86976.0,86944.0,0.2419338]
[1765990809912,1.90730942,86970.0,86947.0,0.01150125]
[1765990810149,2.20489,86968.0,86944.0,0.0004]
[1765990810469,1.73222,86967.0,86944.0,0.0004]
[1765990810694,1.20489,86967.0,86950.0,0.00161372]
[1765990810894,0.0184,86969.0,86966.0,0.00384898]
[1765990811090,0.01803432,86995.0,86966.0,0.00161286]
[1765990811091,0.0184,86985.0,86966.0,0.00161286]
[1765990811272,0.0184,86985.0,86968.0,0.0037858]
[1765990811467,0.0184,86985.0,86966.0,0.00161286]
[1765990811468,1.0,86979.0,86966.0,0.00161286]
[1765990811650,1.0,86979.0,86950.0,8.6e-07]
[1765990811651,0.61289,86974.0,86950.0,0.01150172]
[1765990811850,1.25401,86972.0,86951.0,0.01150073]
[1765990812052,1.0,86997.0,86968.0,0.01149848]
[1765990812253,0.0907,86994.0,86970.0,0.01149821]
[1765990812477,0.0907,86994.0,86970.0,0.01311107]
[1765990812694,0.9654,86989.0,86970.0,0.00161286]
[1765990812934,0.2305,86989.0,86970.0,0.00161286]
[1765990813141,0.70241942,86990.0,86970.0,0.01311107]
[1765990813345,0.0184,86996.0,86970.0,0.01311107]
[1765990813346,0.0907,86999.0,86974.0,0.02500944]
[1765990813545,0.0907,86997.0,86975.0,0.05001839]
[1765990813699,0.0907,86995.0,86975.0,0.29307927]
[1765990813904,0.0907,86993.0,86975.0,0.05163125]
[1765990814104,0.0907,86994.0,86977.0,0.01149729]
[1765990814309,1.0,86993.0,86977.0,0.01512462]
[1765990814552,0.0907,86994.0,86963.0,0.02989914]
[1765990814553,1.25401,86987.0,86963.0,0.02989914]
[1765990814668,0.70241942,86980.0,86964.0,0.01149901]
[1765990814868,1.0,86984.0,86962.0,0.24148432]
[1765990815073,1.25401,86984.0,86970.0,0.001]
[1765990815317,1.25401,86984.0,86965.0,0.01149887]
[1765990815318,0.1606,86987.0,86965.0,0.01149887]
[1765990815515,0.1606,86987.0,86965.0,0.24147628]
[1765990815690,0.1606,86987.0,86963.0,0.001]
[1765990815691,1.25401,86986.0,86963.0,0.001]
[1765990815901,1.25401,86986.0,86952.0,0.29842855]
[1765990815902,0.70241942,86973.0,86952.0,0.23001043]
[1765990816100,0.7741,86972.0,86955.0,0.01351176]
[1765990816386,1.25401,86978.0,86955.0,0.01351176]
[1765990816387,0.0907,86977.0,86970.0,0.001]